bitfinex/quotes_ETHUSD_20250328
["timestamp","ask_amount","ask_price","bid_price","bid_amount"]
[1743160482109,3.0,1910.8,1910.5,5.43846147]
[1743160482307,3.0,1910.8,1910.5,11.79291762]
[1743160482610,5.23322,1910.9,1910.5,11.79291762]
[1743160484612,5.23322,1910.9,1910.5,6.55882762]
[1743160484827,3.0,1910.9,1910.6,5.23393]
[1743160485155,5.23287,1911.0,1910.7,0.8267]
[1743160485309,5.23287,1911.0,1910.8,0.20441147]
[1743160485654,3.0,1910.9,1910.8,0.20441147]
[1743160486017,3.0,1910.9,1910.6,5.23391]
[1743160486215,3.0,1910.9,1910.7,0.20441147]
[1743160488473,8.23314,1910.9,1910.7,0.20441147]
[1743160489236,13.46645,1910.9,1910.7,0.20441147]
[1743160489574,5.23341,1910.8,1910.7,0.20441147]
[1743160489939,5.23341,1910.8,1910.7,0.20460647]
[1743160490476,9.05144,1910.9,1910.7,0.20460647]
[1743160490778,9.05144,1910.9,1910.8,0.20460647]
[1743160491482,9.05144,1910.9,1910.5,6.35457615]
[1743160491642,3.8183,1910.9,1910.8,0.20460647]
[1743160491843,8.23313,1910.9,1910.5,6.35449615]
[1743160492038,8.23313,1910.9,1910.8,0.20460647]
[1743160492238,8.23313,1910.9,1910.5,6.35449615]
[1743160492481,8.23313,1910.9,1910.8,0.20460647]
[1743160492684,8.23313,1910.9,1910.5,11.58859615]
[1743160492991,8.23313,1910.9,1910.8,0.20460647]
[1743160493170,8.23313,1910.9,1910.5,6.35446615]
[1743160493343,8.23313,1910.9,1910.8,0.20460647]
[1743160494546,11.61174845,1910.9,1910.8,0.20460647]
[1743160494872,5.23359,1910.8,1910.5,4.948]
[1743160495084,11.61174845,1910.9,1910.8,0.20460647]
[1743160495283,5.2338,1910.7,1910.4,5.7628]
[1743160495994,10.46766,1910.7,1910.4,5.7628]
[1743160496170,5.23396,1910.6,1910.4,5.7628]
[1743160496679,5.23396,1910.6,1910.3,10.18264]
[1743160496883,5.2338,1910.7,1910.3,10.18264]
[1743160497097,5.2338,1910.7,1910.3,14.573005]
[1743160497410,5.23395,1910.6,1910.3,14.573005]
[1743160497764,5.23395,1910.6,1910.3,10.18264]
[1743160498661,5.23395,1910.6,1910.3,6.0138432]
[1743160499280,5.23441,1910.5,1910.2,0.806]
[1743160499485,3.7684,1910.6,1910.2,0.806]
[1743160499690,9.00236,1910.6,1910.2,6.04093]
[1743160499892,9.00236,1910.6,1910.2,7.668351]
[1743160500087,8.23396,1910.6,1910.2,7.668351]
[1743160500473,13.4681,1910.6,1910.2,7.668351]
[1743160500881,5.23427,1910.5,1910.2,2.433421]
[1743160501898,10.46868,1910.5,1910.2,0.806]
[1743160502099,5.23451,1910.4,1910.2,5.754]
[1743160502399,5.23427,1910.5,1910.2,5.754]
[1743160502613,5.23423,1910.5,1910.2,4.948]
[1743160503012,10.46867,1910.5,1910.2,4.948]
[1743160503397,5.23451,1910.4,1910.3,0.20428127]
[1743160504300,10.081584,1910.4,1910.3,0.20428127]
[1743160504725,3.0,1910.2,1910.1,0.05]
[1743160504938,3.0,1910.5,1910.3,0.20538622]
[1743160505218,0.00696752,1910.6,1910.4,11.15993629]
[1743160505390,0.00696752,1910.6,1910.4,5.92543629]
[1743160506015,5.24091752,1910.6,1910.4,5.15403629]
[1743160506182,5.24091752,1910.6,1910.4,0.20603629]
[1743160506383,5.24091752,1910.6,1910.4,0.51540363]
[1743160506593,5.24091752,1910.6,1910.5,0.20480122]
[1743160507315,0.00696752,1910.6,1910.5,0.20480122]
[1743160507697,5.24091752,1910.6,1910.5,0.20480122]
[1743160508017,0.00696752,1910.6,1910.5,0.20480122]
[1743160509625,0.00696752,1910.6,1910.5,0.80026171]
[1743160509831,0.00696752,1910.6,1910.5,9.47505034]
[1743160510201,0.00696752,1910.6,1910.5,9.42271016]
[1743160510597,0.00696752,1910.6,1910.5,0.20480122]
[1743160511821,0.00696752,1910.6,1910.5,0.20327388]
[1743160512126,0.00696752,1910.6,1910.3,10.97255]
[1743160512293,0.00696752,1910.6,1910.5,0.20327388]
[1743160512489,0.00696752,1910.6,1910.3,10.97255]
[1743160512825,0.00696752,1910.6,1910.3,12.593308]
[1743160512983,0.00696752,1910.6,1910.3,17.827928]
[1743160513189,0.00696752,1910.6,1910.4,0.20327388]
[1743160513389,0.00696752,1910.6,1910.3,17.827928]
[1743160513589,0.00696752,1910.6,1910.4,0.20327388]
[1743160513789,0.00696752,1910.6,1910.3,17.827918]
[1743160513985,0.00696752,1910.6,1910.4,0.20327388]
[1743160514202,5.24098752,1910.6,1910.4,0.20327388]
[1743160514490,0.00696752,1910.6,1910.3,12.593388]
[1743160514690,0.00696752,1910.6,1910.5,0.20411875]
[1743160515023,5.24091752,1910.6,1910.5,0.20411875]
[1743160515228,5.24091752,1910.6,1910.3,12.593298]
[1743160515441,5.24091752,1910.6,1910.4,0.20411875]
[1743160515607,0.00696752,1910.6,1910.4,0.20411875]
[1743160515942,0.00696752,1910.6,1910.3,12.593348]
[1743160516116,0.00696752,1910.6,1910.5,0.20411875]
[1743160516431,0.00696752,1910.6,1910.5,5.43834875]
[1743160516606,0.00696752,1910.6,1910.5,6.24484875]
[1743160517006,0.00696752,1910.6,1910.5,8.8431672]
[1743160517201,0.00696752,1910.6,1910.5,20.79718237]
[1743160517432,0.00696752,1910.6,1910.5,23.73376531]
[1743160519402,0.00696752,1910.6,1910.5,26.88208376]
[1743160525149,0.00696752,1910.6,1910.5,24.28376531]
[1743160526044,0.00696752,1910.6,1910.5,26.88208376]
[1743160527449,0.00696752,1910.6,1910.5,27.27318226]
[1743160529764,0.00696752,1910.6,1910.5,30.27318226]
[1743160532573,0.00696752,1910.6,1910.5,24.67486381]
[1743160533075,0.00696752,1910.6,1910.5,13.37426531]
[1743160536043,0.00696752,1910.6,1910.5,17.30408376]
[1743160536879,0.00696752,1910.6,1910.5,31.80408376]
[1743160537188,0.00696752,1910.6,1910.5,34.80408376]
[1743160537646,7.52e-06,1910.6,1910.5,34.80408376]
[1743160537975,0.762,1911.5,1911.3,5.23182]
[1743160538168,0.7651,1911.7,1911.4,10.17766]
[1743160538367,0.7651,1911.7,1911.4,10.4100286]
[1743160538682,0.7651,1911.7,1911.4,30.1415986]
[1743160538892,0.7651,1911.7,1911.4,30.0892864]
[1743160539189,0.7651,1911.7,1911.4,30.0893064]
[1743160539554,0.7651,1911.7,1911.4,24.8576364]
[1743160539755,0.7651,1911.7,1911.5,5.23125]
[1743160539954,0.7651,1911.7,1911.5,5.28355878]
[1743160540158,0.7651,1911.7,1911.5,5.28377878]
[1743160540370,0.7651,1911.7,1911.6,0.1800564]
[1743160541354,0.8211,1911.9,1911.6,0.23236519]
[1743160541691,0.8211,1911.9,1911.6,5.4111864]
[1743160541980,0.8211,1911.9,1911.6,10.6422464]
[1743160542185,0.8211,1911.9,1911.7,5.23091]
[1743160542342,0.8211,1911.9,1911.6,5.4111164]
[1743160542549,0.8211,1911.9,1911.6,10.46219]
[1743160542849,0.8211,1911.9,1911.7,0.1800564]
[1743160543554,2.59831845,1911.8,1911.7,0.1800564]
[1743160543952,5.23108,1911.7,1911.5,4.945]
[1743160544151,8.61382845,1911.6,1911.5,4.945]
[1743160544571,8.61382845,1911.6,1911.3,32.616]
[1743160545080,5.23176,1911.4,1911.3,32.616]
[1743160545248,7.82999845,1911.5,1911.3,4.945]
[1743160545665,5.23176,1911.4,1911.3,4.945]
[1743160546083,13.06165845,1911.5,1911.3,4.945]
[1743160546386,5.23176,1911.4,1911.3,4.945]
[1743160546981,13.06166845,1911.5,1911.3,4.945]
[1743160547169,6.61625685,1911.5,1911.3,4.945]
[1743160547371,5.23176,1911.4,1911.3,4.945]
[1743160548590,5.23176,1911.4,1911.3,5.10641969]
[1743160549388,8.66057845,1911.4,1911.3,5.10641969]
[1743160549685,11.66057845,1911.4,1911.3,0.16141969]
[1743160549902,5.23224,1911.3,1911.0,4.945]
[1743160550086,5.23221,1911.3,1911.1,0.16109545]
[1743160550255,10.46444,1911.3,1911.1,0.16109545]
[1743160550657,5.23221,1911.3,1911.1,0.16109545]
[1743160551157,10.46443,1911.3,1911.1,0.16109545]
[1743160552169,10.19343,1911.3,1911.1,0.16109545]
[1743160552575,5.23231,1911.2,1911.1,0.16109545]
[1743160552783,4.96121,1911.3,1911.1,14.66109545]
[1743160552985,10.19344,1911.3,1911.1,14.66109545]
[1743160553197,5.23231,1911.2,1911.1,14.66109545]
[1743160553374,7.83062845,1911.2,1911.1,14.66109545]
[1743160553876,5.23231,1911.2,1911.1,14.66109545]
[1743160555177,8.64282845,1911.2,1911.1,14.66109545]
[1743160555586,8.64282845,1911.2,1911.1,0.16109545]
[1743160556124,0.8122,1911.2,1911.0,14.5]
[1743160556284,3.8122,1911.4,1911.1,5.39430366]
[1743160556617,6.04355,1911.6,1911.2,10.46433]
[1743160556780,0.8122,1911.8,1911.5,5.23145]
[1743160556981,0.8122,1911.8,1911.6,14.5]
[1743160557397,0.8122,1911.8,1911.7,0.16362471]
[1743160558316,9.5052963,1911.8,1911.7,0.16362471]
[1743160558912,5.23125,1911.6,1911.3,10.17802]
[1743160559212,7.82956845,1911.6,1911.4,0.16362471]
[1743160560397,5.23125,1911.6,1911.4,0.16362471]
[1743160560602,7.82928845,1911.7,1911.4,5.39535471]
[1743160560800,7.82968845,1911.6,1911.4,0.16362471]
[1743160561111,10.46273,1911.6,1911.4,0.16362471]
[1743160561409,5.23136,1911.6,1911.4,0.16362471]
[1743160562109,10.46275,1911.6,1911.4,0.16362471]
[1743160562311,6.01649,1911.5,1911.4,0.16362471]
[1743160562488,0.785,1911.5,1911.4,0.16362471]
[1743160563920,2.25862763,1911.7,1911.4,10.62680471]
[1743160564319,8.23042,1911.9,1911.6,5.23111]
[1743160564617,8.23042,1911.9,1911.6,6.05011]
[1743160564824,8.23042,1911.9,1911.6,6.0501]
[1743160565117,8.23042,1911.9,1911.7,0.16362471]
[1743160565420,13.05986845,1911.8,1911.5,14.5]
[1743160565725,7.82898845,1911.8,1911.5,14.5]
[1743160565896,7.82898845,1911.8,1911.5,19.73145]
[1743160566694,2.59831845,1911.8,1911.5,19.73134]
[1743160566899,8.23043,1911.9,1911.6,5.23112]
[1743160567823,5.23043,1911.9,1911.6,10.46221]
[1743160568019,5.23043,1911.9,1911.6,5.23109]
[1743160569829,10.46098,1911.9,1911.6,5.23109]
[1743160570126,6.61549984,1911.9,1911.6,5.23109]
[1743160571427,11.84603984,1911.9,1911.6,5.23109]
[1743160571629,6.61549984,1911.9,1911.6,5.23109]
[1743160572122,6.61549984,1911.9,1911.5,5.23144]
[1743160572329,6.61549984,1911.9,1911.5,4.95]
[1743160572330,2.59831845,1911.6,1911.5,4.95]
[1743160573225,7.82952845,1911.6,1911.5,4.95]
[1743160573726,2.59831845,1911.6,1911.5,4.95]
[1743160573927,5.23103,1911.7,1911.5,4.95]
[1743160574088,7.82903845,1911.8,1911.5,10.18144]
[1743160574287,7.82903845,1911.8,1911.5,10.1814]
[1743160574729,2.59831845,1911.8,1911.5,4.95]
[1743160574894,6.02157,1912.0,1911.6,5.99581]
[1743160574895,8.61988845,1912.0,1911.6,5.99581]
[1743160575094,7.82848845,1912.0,1911.7,5.23086]
[1743160575425,13.05875845,1912.0,1911.7,5.23086]
[1743160576124,13.05881845,1912.0,1911.6,11.22691]
[1743160576313,7.82848845,1912.0,1911.6,5.99581]
[1743160576516,5.2304,1911.9,1911.6,5.99581]
[1743160577521,13.05876845,1912.0,1911.7,5.23085]
[1743160577743,14.6646453,1912.0,1911.6,11.22692]
[1743160578146,12.06639685,1912.0,1911.6,11.22692]
[1743160578548,5.23004,1912.1,1911.7,5.38752679]
[1743160578843,13.05844845,1912.1,1911.7,5.38750679]
[1743160579245,7.82835845,1912.1,1911.8,5.23061]
[1743160579445,7.82831845,1912.1,1911.8,5.23061]
[1743160579651,7.82831845,1912.1,1911.8,5.23055]
[1743160579848,7.82831845,1912.1,1911.9,0.15668679]
[1743160580220,5.23,1912.1,1911.9,0.15668679]
[1743160580448,6.0133,1912.2,1911.9,5.92572047]
[1743160580757,5.2297,1912.2,1911.9,16.90527047]
[1743160580934,5.2297,1912.2,1911.9,11.67499047]
[1743160581109,2.59831845,1912.3,1912.0,5.23003]
[1743160581308,13.05711845,1912.3,1912.1,0.15487197]
[1743160581539,5.22931,1912.3,1912.1,0.15487197]
[1743160581807,7.82762845,1912.3,1912.1,0.15487197]
[1743160582037,5.22931,1912.3,1912.1,0.15487197]
[1743160582346,5.22966,1912.2,1911.9,11.51830368]
[1743160582552,13.05703845,1912.3,1912.0,1.15183037]
[1743160583155,7.82762845,1912.3,1912.0,1.15183037]
[1743160583476,5.22959,1912.2,1912.0,1.15183037]
[1743160584073,13.05704845,1912.3,1912.0,1.15183037]
[1743160584372,5.2296,1912.2,1912.0,1.15183037]
[1743160586747,5.2296,1912.2,1912.0,6.09783037]
[1743160586937,10.45937,1912.2,1912.0,4.946]
[1743160587134,5.2296,1912.2,1912.0,4.946]
[1743160587478,5.22985,1912.1,1912.0,4.946]
[1743160588583,7.82760845,1912.4,1912.0,10.98735]
[1743160588905,11.23825,1912.7,1912.3,5.22913]
[1743160588906,5.22834,1912.7,1912.3,5.22913]
[1743160589045,5.22834,1912.7,1912.3,5.2291]
[1743160589046,5.2283,1912.7,1912.3,5.2291]
[1743160589387,10.45669,1912.7,1912.3,5.2291]
[1743160589587,10.45669,1912.7,1912.3,10.45826]
[1743160589785,10.45673,1912.7,1912.4,1.045826]
[1743160589988,5.2285,1912.6,1912.4,4.951]
[1743160591393,5.22875,1912.5,1912.4,4.951]
[1743160593003,7.82681845,1912.6,1912.4,4.951]
[1743160593207,10.45717,1912.6,1912.4,4.951]
[1743160593511,10.45717,1912.6,1912.5,0.15266847]
[1743160596525,5.22823,1912.7,1912.5,0.66303532]
[1743160596691,5.22848,1912.6,1912.5,0.66303532]
[1743160596893,5.22823,1912.7,1912.5,1.41443532]
[1743160597294,6.04129,1912.9,1912.5,6.64303532]
[1743160597606,10.45495,1913.0,1912.6,10.50911894]
[1743160597806,10.45495,1913.0,1912.7,1.05091189]
[1743160598011,10.45495,1913.0,1912.6,5.28058865]
[1743160598212,6.04074,1913.1,1912.8,0.15266847]
[1743160598436,5.22748,1913.0,1912.6,7.82670845]
[1743160598579,5.22739,1913.0,1912.9,0.14547756]
[1743160598786,5.22739,1913.0,1912.8,0.7716]
[1743160599008,5.22723,1913.1,1912.9,0.14547756]
[1743160599427,5.22723,1913.1,1912.8,6.31557]
[1743160599585,5.22711,1913.1,1913.0,0.14547756]
[1743160599792,5.22739,1913.0,1912.8,6.31557]
[1743160601527,5.22711,1913.1,1912.8,6.31557]
[1743160601724,10.45438,1913.1,1912.9,0.631557]
[1743160602224,5.22605,1913.5,1913.1,5.22688]
[1743160602432,10.45224,1913.5,1913.1,5.22688]
[1743160602590,5.22605,1913.5,1913.2,4.95]
[1743160602788,5.22631,1913.4,1913.2,4.95]
[1743160603019,5.99007,1913.3,1913.2,4.95]
[1743160604813,5.22657,1913.3,1913.2,4.95]
[1743160605422,5.22631,1913.4,1913.2,5.445]
[1743160605921,5.22607,1913.5,1913.2,5.445]
[1743160606289,5.22607,1913.5,1913.2,10.67182]
[1743160606490,10.45226,1913.5,1913.2,10.67182]
[1743160606787,5.22607,1913.5,1913.2,10.67182]
[1743160606983,5.22607,1913.5,1913.3,1.067182]
[1743160607293,3.0,1913.5,1913.3,1.067182]
[1743160607500,8.22605,1913.5,1913.3,1.067182]
[1743160608637,8.22605,1913.5,1913.4,0.14178714]
[1743160609497,5.22641,1913.4,1913.2,4.95]
[1743160609693,5.22641,1913.4,1913.3,0.13744947]
[1743160612529,5.22629,1913.4,1913.3,0.96914947]
[1743160612742,8.22605,1913.5,1913.3,0.96914947]
[1743160613859,13.45222,1913.5,1913.3,0.96914947]
[1743160614059,10.45161,1913.6,1913.3,0.96914947]
[1743160614264,0.8309,1913.7,1913.3,6.19565947]
[1743160614265,3.0,1913.7,1913.3,6.19565947]
[1743160614434,5.22567,1913.7,1913.4,0.61956595]
[1743160614635,5.22576,1913.6,1913.4,0.61956595]
[1743160614834,5.22564,1913.7,1913.4,0.61956595]
[1743160615171,5.22575,1913.6,1913.5,0.13744947]
[1743160617675,10.45123,1913.7,1913.5,0.13744947]
[1743160617882,5.22575,1913.6,1913.5,0.13744947]
[1743160618541,5.22603,1913.5,1913.3,0.8317]
[1743160618740,5.22603,1913.5,1913.4,0.13557273]
[1743160621255,10.45168,1913.6,1913.4,0.13557273]
[1743160621652,5.22575,1913.6,1913.4,0.18783026]
[1743160621851,5.22556,1913.7,1913.4,0.81242129]
[1743160622100,10.45121,1913.7,1913.4,0.81242129]
[1743160622262,5.22578,1913.6,1913.4,0.81242129]
[1743160623365,5.22578,1913.6,1913.4,0.76016376]
[1743160623615,5.22602,1913.5,1913.4,0.13557273]
[1743160624412,5.22578,1913.6,1913.4,0.13557273]
[1743160625411,10.45167,1913.6,1913.4,0.13557273]
[1743160625614,5.22578,1913.6,1913.4,0.13557273]
[1743160626091,10.45169,1913.6,1913.4,0.13557273]
[1743160626276,5.22578,1913.6,1913.4,0.754951]
[1743160626608,10.45168,1913.6,1913.4,0.754951]
[1743160627008,5.22602,1913.5,1913.4,0.13557273]
[1743160627311,5.22602,1913.5,1913.2,12.44829146]
[1743160627491,5.22602,1913.5,1913.3,0.13447265]
[1743160628220,10.45166,1913.6,1913.3,0.13447265]
[1743160628509,5.2258,1913.6,1913.3,5.36102265]
[1743160628715,10.45174,1913.6,1913.4,0.53610227]
[1743160628876,10.45174,1913.6,1913.5,0.13511974]
[1743160628877,5.2258,1913.6,1913.5,0.13511974]
[1743160629077,10.45174,1913.6,1913.2,16.62256787]
[1743160629273,5.2258,1913.6,1913.3,0.13511974]
[1743160629496,5.2258,1913.6,1913.3,5.36165974]
[1743160630024,5.22614,1913.5,1913.3,0.13511974]
[1743160630318,5.22614,1913.5,1913.3,1.2882335]
[1743160630740,10.45164,1913.6,1913.3,1.2882335]
[1743160631028,5.22578,1913.6,1913.3,1.2882335]
[1743160631330,5.22575,1913.6,1913.3,1.2882335]
[1743160631514,5.22612,1913.5,1913.3,1.2882335]
[1743160631716,10.4523,1913.5,1913.3,1.2882335]
[1743160631888,5.22612,1913.5,1913.3,1.2882335]
[1743160632328,10.45231,1913.5,1913.3,1.2882335]
[1743160632499,5.22612,1913.5,1913.3,1.2882335]
[1743160632701,10.45231,1913.5,1913.3,1.2882335]
[1743160632932,10.45239,1913.5,1913.3,1.2882335]
[1743160633339,5.22612,1913.5,1913.3,1.2882335]
[1743160633803,10.45229,1913.5,1913.3,1.2882335]
[1743160634006,5.22612,1913.5,1913.3,1.2882335]
[1743160634325,5.22629,1913.4,1913.3,1.2882335]
[1743160634528,5.22612,1913.5,1913.3,1.2882335]
[1743160634817,5.22577,1913.6,1913.3,1.2882335]
[1743160635027,5.22602,1913.5,1913.3,1.2882335]
[1743160635501,5.22602,1913.5,1913.3,2.31917968]
[1743160637421,5.15102,1913.5,1913.4,14.5]
[1743160637992,5.15102,1913.5,1913.4,14.63511974]
[1743160638213,5.15102,1913.5,1913.4,16.31703771]
[1743160638434,5.22577,1913.6,1913.4,16.31703771]
[1743160638596,10.45167,1913.6,1913.4,16.31703771]
[1743160638793,5.22559,1913.7,1913.4,16.31703771]
[1743160638996,0.05,1913.9,1913.7,5.22539]
[1743160639226,0.05,1913.9,1913.6,10.1657]
[1743160639522,0.05,1913.9,1913.7,5.27770954]
[1743160639727,0.05,1913.9,1913.8,0.13434332]
[1743160641494,0.05,1913.9,1913.8,0.73349928]
[1743160642514,0.05,1913.9,1913.8,9.36966677]
[1743160642835,0.05,1913.9,1913.8,6.77134832]
[1743160644125,0.05,1913.9,1913.8,7.15436545]
[1743160644338,0.05,1913.9,1913.8,21.65436545]
[1743160644631,0.05,1913.9,1913.8,21.60211641]
[1743160648736,0.05,1913.9,1913.8,24.75043486]
[1743160650799,0.05,1913.9,1913.8,52.38243486]
[1743160651832,0.05,1913.9,1913.8,53.40719831]
[1743160654415,0.05,1913.9,1913.8,59.43719831]
[1743160655832,0.05,1913.9,1913.8,61.22687986]
[1743160656578,0.05,1913.9,1913.8,61.77687986]
[1743160656922,0.05,1913.9,1913.8,60.46647986]
[1743160657464,0.05,1913.9,1913.8,64.41739831]
[1743160658189,0.05,1913.9,1913.8,61.81907986]
[1743160658494,0.05,1913.9,1913.8,47.31907986]
[1743160659167,0.05,1913.9,1913.8,49.91739831]
[1743160659883,0.05,1913.9,1913.8,64.41739831]
[1743160660184,0.05,1913.9,1913.8,58.38739831]
[1743160662188,0.05,1913.9,1913.8,61.38739831]
[1743160665285,0.05,1913.9,1913.8,74.93610331]
[1743160665501,0.05,1913.9,1913.8,66.05477731]
[1743160666197,0.05,1913.9,1913.8,72.08477731]
[1743160666371,1e-05,1913.9,1913.8,72.08477731]
[1743160667096,1e-05,1913.9,1913.8,75.08477731]
[1743160671890,0.8081,1914.8,1914.5,5.22307]
[1743160672114,0.8081,1914.8,1914.6,4.937]
[1743160672327,0.8081,1914.8,1914.6,5.05543608]
[1743160672821,0.8081,1914.8,1914.7,14.5]
[1743160673195,0.8081,1914.8,1914.7,14.61494689]
[1743160673390,3.40641845,1914.8,1914.7,0.11494689]
[1743160673621,5.22343,1914.5,1914.3,4.937]
[1743160673794,0.7522,1914.4,1914.3,10.16084]
[1743160673995,0.7522,1914.4,1914.3,24.66084]
[1743160674836,0.7522,1914.4,1914.3,19.437]
[1743160676995,0.7522,1914.4,1914.3,14.5]
[1743160677201,8.63247845,1914.4,1914.3,14.5]
[1743160677797,0.7552,1914.3,1914.2,4.936]
[1743160678235,8.57735845,1914.3,1914.2,19.436]
[1743160678905,5.97904,1914.3,1914.2,19.436]
[1743160679654,0.7552,1914.3,1914.2,19.436]
[1743160680016,8.57735845,1914.3,1914.2,19.436]
[1743160680218,8.57735845,1914.3,1914.2,14.5]
[1743160680408,5.97611,1914.2,1914.1,4.936]
[1743160680614,0.752,1914.2,1914.1,4.936]
[1743160681154,0.752,1914.2,1914.1,5.952053]
[1743160682413,0.752,1914.2,1914.1,4.936]
[1743160682414,5.97611,1914.2,1914.1,4.936]
[1743160682614,0.752,1914.2,1914.1,4.936]
[1743160683444,0.752,1914.2,1914.1,5.04399756]
[1743160684549,5.97611,1914.2,1914.1,19.54399756]
[1743160684750,5.70511,1914.2,1914.1,19.54399756]
[1743160685051,5.70511,1914.2,1914.1,14.60799756]
[1743160685260,8.30342845,1914.2,1914.1,0.10799756]
[1743160685640,5.22438,1914.1,1914.0,4.937]
[1743160685859,5.22438,1914.1,1914.0,19.437]
[1743160687630,8.57909845,1914.1,1914.0,4.937]
[1743160687826,5.98133,1913.9,1913.8,32.569]
[1743160688345,5.98133,1913.9,1913.8,42.132]
[1743160689048,6.05013,1914.1,1913.8,47.3572]
[1743160689253,6.03327,1914.3,1913.9,10.44969]
[1743160689418,11.25728,1914.3,1913.9,5.2248]
[1743160689754,11.25728,1914.3,1914.0,15.02248]
[1743160689967,5.22411,1914.2,1914.1,4.937]
[1743160692543,5.22472,1914.0,1913.8,27.632]
[1743160692775,11.25925,1914.0,1913.8,27.632]
[1743160692935,6.03442,1914.0,1913.9,4.937]
[1743160694865,5.22493,1913.9,1913.8,19.437]
[1743160696076,8.60574845,1913.9,1913.8,4.937]
[1743160696783,6.00751,1913.9,1913.6,5.96641637]
[1743160696944,6.00751,1913.9,1913.6,8.69880438]
[1743160697140,6.00751,1913.9,1913.6,7.66938801]
[1743160697353,6.00751,1913.9,1913.6,12.89512801]
[1743160698163,5.2247,1914.0,1913.7,5.22546]
[1743160698564,5.2247,1914.0,1913.8,0.10574327]
[1743160698893,10.44953,1914.0,1913.8,0.10574327]
[1743160699088,5.2247,1914.0,1913.9,14.5]
[1743160699274,5.2247,1914.0,1913.9,14.60574327]
[1743160700976,13.84649845,1914.1,1913.9,14.60574327]
[1743160701180,5.22466,1914.0,1913.9,0.10574327]
[1743160701350,7.82297845,1914.0,1913.9,0.10574327]
[1743160701554,5.22466,1914.0,1913.8,14.5]
[1743160701758,5.22466,1914.0,1913.9,0.10696986]
[1743160702166,5.22466,1914.0,1913.8,14.5]
[1743160702462,5.22466,1914.0,1913.9,0.10696986]
[1743160702658,5.22466,1914.0,1913.8,14.5]
[1743160702853,5.22466,1914.0,1913.9,0.10696986]
[1743160703051,13.84654845,1914.1,1913.8,14.5]
[1743160703252,13.84654845,1914.1,1913.9,0.10696986]
[1743160703587,13.84654845,1914.1,1913.8,14.5]
[1743160703957,13.84654845,1914.1,1913.9,0.10696986]
[1743160704479,13.84654845,1914.1,1914.0,0.10696986]
[1743160704690,13.84659845,1914.1,1913.8,14.5]
[1743160704890,8.62200845,1914.1,1914.0,0.10696986]
[1743160705091,5.22358,1914.4,1914.0,5.04496986]
[1743160705092,5.22394,1914.3,1914.0,5.04496986]
[1743160705295,10.44796,1914.3,1914.0,5.04496986]
[1743160705601,5.22394,1914.3,1914.0,5.04496986]
[1743160705959,5.22394,1914.3,1914.0,10.26956986]
[1743160706375,5.98069,1914.4,1914.1,5.22419]
[1743160706682,5.22335,1914.5,1914.2,5.22403]
[1743160706885,5.22335,1914.5,1914.2,5.32919225]
[1743160707088,10.44678,1914.5,1914.2,0.10516225]
[1743160707383,10.44681,1914.5,1914.2,0.10516225]
[1743160707584,10.44681,1914.5,1914.1,10.44845]
[1743160707785,0.7637,1914.6,1914.1,10.44845]
[1743160707786,5.98676,1914.6,1914.3,0.10516225]
[1743160708081,5.2234,1914.5,1914.3,0.10516225]
[1743160709165,10.44688,1914.5,1914.3,0.10516225]
[1743160709375,10.44684,1914.5,1914.3,0.10516225]
[1743160709589,10.44684,1914.5,1914.1,12.9591796]
[1743160709790,10.44684,1914.5,1914.4,0.10361329]
[1743160710007,10.44736,1914.4,1914.1,5.22427]
[1743160710167,0.7928,1914.3,1914.2,14.5]
[1743160710504,6.01678,1914.3,1914.0,11.78949599]
[1743160710693,6.01678,1914.3,1914.0,4.938]
[1743160710694,5.22438,1914.1,1914.0,4.938]
[1743160711300,5.22433,1914.2,1914.0,4.938]
[1743160711595,5.22427,1914.2,1914.0,4.938]
[1743160711984,11.2407,1914.3,1914.0,4.938]
[1743160712378,5.22411,1914.2,1914.0,4.938]
[1743160713018,5.22411,1914.2,1914.0,5.954278]
[1743160713598,5.22411,1914.2,1914.1,0.1052268]
[1743160713892,6.01668,1914.3,1914.1,0.1052268]
[1743160713893,11.24067,1914.3,1914.1,0.1052268]
[1743160714295,5.22411,1914.2,1914.1,0.1052268]
[1743160714796,11.24076,1914.3,1914.1,0.1052268]
[1743160714998,5.98992,1914.5,1914.1,2.15239785]
[1743160715301,5.22332,1914.5,1914.2,11.22745]
[1743160715522,3.36491845,1914.7,1914.2,0.7795]
[1743160715812,0.7666,1914.7,1914.4,5.2234]
[1743160715976,5.98936,1914.7,1914.5,4.937]
[1743160716182,5.98936,1914.7,1914.5,5.03861202]
[1743160716698,0.7666,1914.7,1914.5,10.26165202]
[1743160716913,5.22248,1914.8,1914.5,5.09084067]
[1743160717076,5.22248,1914.8,1914.5,10.26188202]
[1743160717478,5.22302,1914.6,1914.5,5.03861202]
[1743160717679,5.22384,1914.3,1914.2,4.953]
[1743160717880,5.22439,1914.1,1913.9,4.953]
[1743160718080,5.22439,1914.1,1913.7,5.22539]
[1743160718408,10.44899,1914.1,1913.8,4.956]
[1743160718626,5.22439,1914.1,1913.8,5.974139]
[1743160718983,10.44896,1914.1,1913.8,5.974139]
[1743160720018,5.22468,1914.0,1913.8,5.974139]
[1743160720419,5.22532,1913.8,1913.7,4.953]
[1743160720627,7.82363845,1913.8,1913.7,4.953]
[1743160721222,5.22532,1913.8,1913.7,4.953]
[1743160721418,7.82363845,1913.8,1913.7,4.953]
[1743160721621,5.99143,1914.0,1913.7,5.4483]
[1743160722106,5.22505,1913.9,1913.7,5.4483]
[1743160722514,10.45017,1913.9,1913.7,5.4483]
[1743160722698,5.22505,1913.9,1913.7,5.4483]
[1743160722890,5.99139,1914.0,1913.7,5.4483]
[1743160723091,5.99139,1914.0,1913.7,10.67374]
[1743160723338,5.22469,1914.0,1913.7,10.67374]
[1743160723490,10.44953,1914.0,1913.8,1.067374]
[1743160723819,5.22469,1914.0,1913.7,5.4483]
[1743160724119,5.22441,1914.1,1913.7,15.89906]